Workbook

Sheet RSCS
B7: Input Parameters:
B9: Passing Sieve #4
B12: Passing Sieve #200
B16: Sand Fraction FS:
B17: emin | D17: emax
B19: or | F19: Cc
B21: Cu | D21: R
B24: Gravel Fraction FG:
B25: emin | D25: emax
B27: or | F27: Cc
B29: Cu | D29: R
B32: Fines Fraction FF:
C33: LLdw
F34: Please fill white boxes to provide soil classification
C35: LLker
C37: LLbrine
E604: 1 | F604: 1
E606: 0 | F606: 0 | CK606: 0 | CL606: 0
F611: 0 | G611: 0
F612: 0 | G612: 0

Sheet Int6 (hidden)
B99: LL corrected | H99: Llker | I99: Llbrine | J99: LLdw
H100: 55 | I100: 70 | J100: 60
B101: =(H100/I100)*((1-0.11688*(I100/100))/0.8) -> 0.9017878571 | C101: =(J100/I100)*(1-0.11688*(I100/100)) -> 0.7870148571
B103: =IF(B101>=1,"LLker/LLbri","LLbri/LLker") -> LLbri/LLker | C103: =IF(C101>=1,"LLdw/LLbri","Llbri/LLdw") -> Llbri/LLdw
B104: =IF(B101>=1,B101,(B101^(-1))) -> 1.108908256 | C104: =IF(C101>=1,C101,(C101^(-1))) -> 1.270624043 | D104: =(((B104-1)^2)+((C104-1)^2))^(1/2) -> 0.2917162682 | E104: =I100/(1-0.11688*I100/100) -> 76.2374426
N105: CHART #1
F107: Fine Classification | M107: 0.02 | O107: 0.04
B108: PLOT #1 | F108: =IF(D104>1,"High Electrical Sensitivity",IF(D104>0.4,"Intermedial Electrical Sensitivity","Low Electrical Sensitivity")) -> Low Electrical Sensitivity | G108: =IF(E104>75,"High plasticity",IF(E104>50,"Intermedium plasticity",IF(E104>30,"Low plasticy","Non plastic"))) -> High plasticity | K108: Circules plots
B109: X | C109: Y | F109: =IF(D104>1,"H",IF(D104>0.4,"I","L")) -> L | G109: =IF(E104>75,"H",IF(E104>50,"I",IF(E104>30,"L","N"))) -> H | K109: Lines | M109: x | N109: y | O109: x | P109: y
B110: =IF(B101>1,2-B101,((B101)^-1)) -> 1.108908256 | C110: =C104 -> 1.270624043 | K110: -1 | L110: 1 | M110: 0.6 | N110: =SQRT(0.4^2-(1-M110)^2)+1 -> 1 | O110: 0 | P110: =SQRT(1^2-(1-O110)^2)+1 -> 1
B111: PLOT #2 | K111: 3 | L111: 1 | M111: =M110+M$107 -> 0.62 | N111: 1.12489996 | O111: 0.02 | P111: =SQRT(1^2-(1-O111)^2)+1 -> 1.198997487
B112: X | C112: Y | M112: 0.64 | N112: 1.174355958 | O112: =O111+O$107 -> 0.06 | P112: 1.341174442
B113: =I100/(1-0.11688*I100/100) -> 76.2374426 | C113: =D104 -> 0.2917162682 | K113: 1 | L113: 0 | M113: 0.66 | N113: 1.210713075 | O113: 0.1 | P113: 1.435889894
K114: 1 | L114: 6 | M114: 0.68 | N114: 1.24 | O114: 0.14 | P114: 1.510294033
M115: 0.7 | N115: 1.264575131 | O115: 0.18 | P115: 1.572363521
M116: 0.72 | N116: 1.285657137 | O116: 0.22 | P116: 1.625779514
M117: 0.74 | N117: =SQRT(0.4^2-(1-M117)^2)+1 -> 1.303973683 | O117: 0.26 | P117: 1.672606869
M118: 0.76 | N118: 1.32 | O118: 0.3 | P118: 1.714142843
M119: 0.78 | N119: 1.334065862 | O119: 0.34 | P119: 1.751265599
M120: 0.8 | N120: 1.346410162 | O120: 0.38 | P120: 1.78460181
M121: 0.82 | N121: 1.357211422 | O121: 0.42 | P121: 1.814616474
M122: 0.84 | N122: 1.366606056 | O122: 0.46 | P122: 1.841665017
M123: 0.86 | N123: 1.37469988 | O123: 0.5 | P123: 1.866025404
M124: 0.88 | N124: 1.381575681 | O124: 0.54 | P124: 1.887918915
M125: 0.9 | N125: 1.387298335 | O125: 0.58 | P125: 1.907524104
M126: 0.92 | N126: 1.391918359 | O126: 0.62 | P126: 1.924986486
M127: 0.94 | N127: 1.395474399 | O127: 0.66 | P127: 1.940425436
M128: 0.96 | N128: 1.397994975 | O128: 0.7 | P128: 1.953939201
M129: 0.98 | N129: 1.399499687 | O129: 0.74 | P129: 1.965608616
M130: 1 | N130: 1.4 | O130: 0.78 | P130: 1.975499872
M131: 1.02 | N131: 1.399499687 | O131: 0.82 | P131: 1.98366661
M132: 1.04 | N132: 1.397994975 | O132: 0.86 | P132: 1.990151504
M133: 1.06 | N133: 1.395474399 | O133: 0.9 | P133: 1.994987437
M134: 1.08 | N134: 1.391918359 | O134: 0.94 | P134: 1.998198377
M135: 1.1 | N135: 1.387298335 | O135: 0.98 | P135: 1.99979998
M136: 1.12 | N136: 1.381575681 | O136: 1.02 | P136: 1.99979998
M137: 1.14 | N137: 1.37469988 | O137: 1.06 | P137: 1.998198377
M138: 1.16 | N138: 1.366606056 | O138: 1.1 | P138: 1.994987437
M139: 1.18 | N139: 1.357211422 | O139: 1.14 | P139: 1.990151504
M140: 1.2 | N140: 1.346410162 | O140: 1.18 | P140: 1.98366661
M141: 1.22 | N141: 1.334065862 | O141: 1.22 | P141: 1.975499872
M142: 1.24 | N142: 1.32 | O142: 1.26 | P142: 1.965608616
M143: 1.26 | N143: 1.303973683 | O143: 1.3 | P143: 1.953939201
M144: 1.28 | N144: 1.285657137 | O144: =O143+O$107 -> 1.34 | P144: 1.940425436
M145: 1.3 | N145: 1.264575131 | O145: 1.38 | P145: 1.924986486
M146: 1.32 | N146: 1.24 | O146: 1.42 | P146: 1.907524104
M147: 1.34 | N147: 1.210713075 | O147: 1.46 | P147: 1.887918915
M148: 1.36 | N148: 1.174355958 | O148: 1.5 | P148: 1.866025404
M149: 1.38 | N149: 1.12489996 | O149: 1.54 | P149: 1.841665017
M150: 1.4 | N150: 1 | O150: 1.58 | P150: 1.814616474
O151: 1.62 | P151: 1.78460181
O152: 1.66 | P152: 1.751265599
O153: 1.7 | P153: 1.714142843
O154: 1.74 | P154: 1.672606869
O155: 1.78 | P155: 1.625779514
O156: 1.82 | P156: 1.572363521
O157: 1.86 | P157: 1.510294033
O158: 1.9 | P158: 1.435889894
O159: 1.94 | P159: 1.341174442
O160: 1.98 | P160: 1.198997487
O161: 2.02 | P161: 1

Sheet Int7 (hidden)
M88: CHART#2
M89: boundaries
M90: 0 | N90: 0.4
M91: 200 | N91: 0.4
M93: 0 | N93: 1
M94: 200 | N94: 1
M96: 30 | N96: 0
M97: 30 | N97: 4.5
M99: 50 | N99: 0
M100: 50 | N100: 4.5
M102: 75 | N102: 0
M103: 75 | N103: 4.5

Sheet Int12 (hidden)
R96: Plot_Soil | S96: X | T96: Y
S97: =IF($T$101="", "",$T$101 +$R$101/2) -> 85 | T97: =IF($R$101="", "", SQRT(3)/2*$R$101) -> 0
S100: G[%] | T100: S[%] | V100: eGmax | W100: eGmin | X100: eSmax | Y100: eSmin | AA100: LL[%]
R101: 0 | S101: 15 | T101: 85 | V101: 0.82 | W101: 0.44 | X101: 0.71 | Y101: 0.4 | AA101: 44
AF102: =IF(AA101<27,"",S(F)) -> 
V104: GRAVEL | X104: SAND | AA104: eF|LL | AB104: eF|10kPa | AC104: eF|1MPa
V105: R | W105: Cu | X105: R | Y105: Cu | AA105: =2.65/100*AA101 -> 1.166 | AB105: =0.0265*AA101 -> 1.166 | AC105: =0.011*AA101+0.21 -> 0.694
V106: 0.3 | W106: 2 | X106: 0.3 | Y106: 2
AG110: a | AH110: 0 | AI110: 100 | AJ110: =AH110+AI110/2 -> 50 | AK110: =SQRT(3)/2*AI110 -> 86.60254038
AG111: b | AH111: 0 | AI111: 0 | AJ111: =AH111+AI111/2 -> 0 | AK111: =SQRT(3)/2*AI111 -> 0
R112: Load-carrying fraction | AG112: c | AH112: 100 | AI112: 0 | AJ112: =AH112+AI112/2 -> 100 | AK112: =AI112*SQRT(3)/2 -> 0
R114: Packing | S114: Gravel | U114: Sand | W114: Fines | AA114: Void ratio | AJ114: Plot
S115: emax | T115: emin | U115: emax | V115: emin | W115: e10kPa | X115: e1MPa | AA115: G | AB115: S | AC115: F | AF115: G | AG115: S | AH115: F | AJ115: X | AK115: Y
R116: ① | T116: =$W$101 -> 0.44 | W116: =$AB$105 -> 1.166 | Z116: [1] | AA116: =T116 -> 0.44 | AB116: - | AC116: =W116 -> 1.166 | AE116: [1] | AF116: =100-AH116 -> 83.11588642 | AG116: 0 | AH116: =100*AA116/(1+AA116+AC116) -> 16.88411358 | AI116: [1] | AJ116: =IF(AG116="", "", AG116 +AH116/2) -> 8.442056792 | AK116: =IF(AH116="", "", SQRT(3)/2*AH116) -> 14.62207128 | AN116: F(F) | AO116: =(AJ110+AJ122+AJ124+AJ123)/4 -> 50.73111228 | AP116: =(AK110+AK123+AK124+AK122)/4 -> 42.3999838
R117: ② | T117: =$W$101 -> 0.44 | U117: =$X$101 -> 0.71 | Z117: [2] | AA117: =T117 -> 0.44 | AB117: =U117 -> 0.71 | AC117: - | AE117: [2] | AF117: =100-AG117 -> 79.53488372 | AG117: =100*AA117/(1+AA117+AB117) -> 20.46511628 | AH117: 0 | AI117: [2] | AJ117: 20.46511628 | AK117: 0
R118: ③ | T118: 0.44 | U118: =$X$101 -> 0.71 | W118: =$AB$105 -> 1.166 | Z118: [3] | AA118: =T118 -> 0.44 | AB118: =U118 -> 0.71 | AC118: =W118 -> 1.166 | AE118: [3] | AF118: =100/(1+AA118/(1+AB118)+(AA118/(1+AC118))*(1-1/(1+AB118))) -> 74.53484394 | AG118: =100*(AA118/(1+AB118))/(1+AA118/(1+AB118)+(AA118/(1+AC118))*(1-1/(1+AB118))) -> 19.17855634 | AH118: =(100-AF118-AG118) -> 6.286599722 | AI118: [3] | AJ118: 22.3218562 | AK118: 5.444355063 | AN118: GF(F) | AO118: =(AJ116+AJ118+AJ122+AJ124)/4 -> 25.33076459 | AP118: =(AK116+AK118+AK122+AK124)/4 -> 18.12990784
R119: ④ | V119: =$Y$101 -> 0.4 | W119: =$AB$105 -> 1.166 | Z119: [4] | AA119: - | AB119: =V119 -> 0.4 | AC119: =W119 -> 1.166 | AE119: [4] | AF119: 0 | AG119: =100-AH119 -> 84.41153546 | AH119: =100*AB119/(1+AB119+AC119) -> 15.58846454 | AI119: [4] | AJ119: 92.20576773 | AK119: 13.50000629 | AN119: G(F) | AO119: =(AJ116+AJ118+AJ131+AJ132)/4 -> 14.31096508 | AP119: =(AK116+AK118+AK131+AK132)/4 -> 7.933076765
Q120: G-S axis | R120: ⑤ | S120: =2.5*$V$101 -> 2.05 | V120: =$Y$101 -> 0.4 | Z120: [5] | AA120: =S120 -> 2.05 | AB120: =V120 -> 0.4 | AC120: - | AE120: [5] | AF120: =100-AG120 -> 40.57971014 | AG120: =100*AA120/(1+AA120+AB120) -> 59.42028986 | AH120: 0 | AI120: [5] | AJ120: 59.42028986 | AK120: 0 | AN120: G(G) | AO120: =(AJ111+AJ131+AJ117+AJ132)/4 -> 11.73626591 | AP120: =(AK111+AK131+AK132+AK117)/4 -> 2.916470178
Q121: G-S-F (2) | R121: ⑥ | S121: =2.5*$V$101 -> 2.05 | V121: 0.4 | W121: =$AB$105 -> 1.166 | Z121: [6] | AA121: =S121 -> 2.05 | AB121: =V121 -> 0.4 | AC121: =W121 -> 1.166 | AE121: [6] | AF121: =100/(1+AA121/(1+AB121)+(AA121/(1+AC121))*(1-1/(1+AB121))) -> 36.56710119 | AG121: =100*(AA121/(1+AB121))/(1+AA121/(1+AB121)+(AA121/(1+AC121))*(1-1/(1+AB121))) -> 53.54468388 | AH121: =(100-AF121-AG121) -> 9.888214936 | AI121: [6] | AJ121: 58.48879135 | AK121: 8.563445333
Q122: G-F axis | R122: ⑦ | S122: =1.3*$V$101 -> 1.066 | X122: =$AC$105 -> 0.694 | Z122: [7] | AA122: =S122 -> 1.066 | AB122: - | AC122: =X122 -> 0.694 | AE122: [7] | AF122: =100-AH122 -> 61.37681159 | AG122: 0 | AH122: =100*AA122/(1+AA122+AC122) -> 38.62318841 | AI122: [7] | AJ122: 19.3115942 | AK122: 33.44866233 | AN122: SF(F) | AO122: =(AJ119+AJ121+AJ123+AJ124)/4 -> 71.0768535 | AP122: =(AK119+AK121+AK123+AK124)/4 -> 17.90304603
Q123: S-F axis | R123: ⑧ | U123: =1.3*$X$101 -> 0.923 | X123: =$AC$105 -> 0.694 | Z123: [8] | AA123: - | AB123: =U123 -> 0.923 | AC123: =X123 -> 0.694 | AE123: [8] | AF123: 0 | AG123: =100-AH123 -> 64.73060757 | AH123: =100*AB123/(1+AB123+AC123) -> 35.26939243 | AI123: [8] | AJ123: 82.36530378 | AK123: 30.54418982 | AN123: S(F) | AO123: =(AJ119+AJ121+AJ133+AJ134)/4 -> 76.25504262 | AP123: =(AK119+AK121+AK133+AK134)/4 -> 8.71165902
Q124: G-S-F | R124: ⑨ | S124: =2.5*$V$101 -> 2.05 | U124: =1.3*$X$101 -> 0.923 | X124: 0.694 | Z124: [9] | AA124: =S124 -> 2.05 | AB124: =U124 -> 0.923 | AC124: =X124 -> 0.694 | AE124: [9] | AF124: =100/(1+AA124/(1+AB124)+(AA124/(1+AC124))*(1-1/(1+AB124))) -> 37.78017102 | AG124: =100*(AA124/(1+AB124))/(1+AA124/(1+AB124)+(AA124/(1+AC124))*(1-1/(1+AB124))) -> 40.27527332 | AH124: =(100-AF124-AG124) -> 21.94455565 | AI124: [9] | AJ124: 51.24755115 | AK124: 19.00454267 | AN124: S(S) | AO124: =(AJ112+AJ120+AJ133+AJ134)/4 -> 78.43647531 | AP124: =(AK112+AK120+AK133+AK134)/4 -> 3.195796113
AN126: GSF(F) | AO126: =(AJ118+AJ121+AJ124)/3 -> 44.01939956 | AP126: =(AK118+AK121+AK124)/3 -> 11.00411436
R127: Fluid flow controllling fraction
U128: eF=λeF|LL | V128: λ = | W128: =IF(AA101>27, 2*LOG($AA$101-25),1) -> 2.557507202 | AN128: GS(S) | AO128: =(AJ117+AJ120+AJ132+AJ133)/4 -> 40.06999273 | AP128: =(AK117+AK120+AK132+AK133)/4 -> 1.98169982
R129: Packing | S129: Gravel | U129: Sand | W129: Fines | AA129: Void ratio | AJ129: Plot | AN129: GS(F) | AO129: =(AJ118+AJ121+AJ132+AJ133)/4 -> 40.30130308 | AP129: =(AK118+AK121+AK132+AK133)/4 -> 5.483649919
S130: emax | T130: emin | U130: emax | V130: emin | W130: eF | X130: e1MPa | AA130: G | AB130: S | AC130: F | AF130: G | AG130: S | AH130: F | AJ130: X | AK130: Y
R131: ⑩ | T131: =$W$101 -> 0.44 | W131: =$W$128*$AA$105 -> 2.982053397 | Z131: [10] | AA131: =T131 -> 0.44 | AB131: - | AC131: =W131 -> 2.982053397 | AE131: [10] | AF131: =100-AH131 -> 90.0498714 | AG131: 0 | AH131: =100*AA131/(1+AA131+AC131) -> 9.950128604 | AI131: [10] | AJ131: =IF(AG131="", "", AG131 +AH131/2) -> 4.975064302 | AK131: =IF(AH131="", "", SQRT(3)/2*AH131) -> 8.617064142
R132: ⑪ | T132: =$W$101 -> 0.44 | U132: =$X$101 -> 0.71 | W132: =$W$128*$AA$105 -> 2.982053397 | Z132: [11] | AA132: =T132 -> 0.44 | AB132: =U132 -> 0.71 | AC132: =W132 -> 2.982053397 | AE132: [11] | AF132: =100/(1+AA132/(1+AB132)+(AA132/(1+AC132))*(1-1/(1+AB132))) -> 76.73488189 | AG132: =100*(AA132/(1+AB132))/(1+AA132/(1+AB132)+(AA132/(1+AC132))*(1-1/(1+AB132))) -> 19.74464797 | AH132: =(100-AF132-AG132) -> 3.520470135 | AI132: [11] | AJ132: =IF(AG132="", "", AG132 +AH132/2) -> 21.50488304 | AK132: =IF(AH132="", "", SQRT(3)/2*AH132) -> 3.04881657
R133: ⑫ | S133: =2.5*$V$101 -> 2.05 | V133: =$Y$101 -> 0.4 | W133: 2.982053397 | Z133: [12] | AA133: =S133 -> 2.05 | AB133: =V133 -> 0.4 | AC133: =W133 -> 2.982053397 | AE133: [12] | AF133: =100/(1+AA133/(1+AB133)+(AA133/(1+AC133))*(1-1/(1+AB133))) -> 38.29401363 | AG133: =100*(AA133/(1+AB133))/(1+AA133/(1+AB133)+(AA133/(1+AC133))*(1-1/(1+AB133))) -> 56.07337711 | AH133: =(100-AF133-AG133) -> 5.632609261 | AI133: [12] | AJ133: =IF(AG133="", "", AG133 +AH133/2) -> 58.88968174 | AK133: =IF(AH133="", "", SQRT(3)/2*AH133) -> 4.877982709
R134: ⑬ | V134: =$Y$101 -> 0.4 | W134: 2.982053397 | Z134: [13] | AA134: - | AB134: =V134 -> 0.4 | AC134: =W134 -> 2.982053397 | AE134: [13] | AF134: 0 | AG134: =(100-AH134) -> 90.87185929 | AH134: =100*AB134/(1+AB134+AC134) -> 9.128140708 | AI134: [13] | AJ134: =IF(AG134="", "", AG134 +AH134/2) -> 95.43592965 | AK134: =IF(AH134="", "", SQRT(3)/2*AH134) -> 7.905201742
AM137: From the equation | AO137: Soil location vs line
AL138: Line | AM138: y | AN138: x
S139: X | T139: Y | W139: X | X139: Y | AA139: X | AB139: Y | AE139: X | AF139: Y | AL139: 10-11 | AM139: =((AK132-AK131)/(AJ132-AJ131))*(AI141-AJ131)+AK131 -> -18.34019782 | AN139: =((AJ141-AK131)/((AK132-AK131)/(AJ132-AJ131)))+AJ131 -> 30.55555556 | AO139: =IF($AI$141>AN139,"right","left") -> right | AP139: =IF($AJ$141>AM139,"upper","lower") -> upper | AQ139: 10-11-2 | AR139: =IF(AND(AO140="left",AP139="lower"),1,0) -> 0 | AS139: G(G)
R140: [2] | S140: =AJ117 -> 20.46511628 | T140: =AK117 -> 0 | V140: [5] | W140: =AJ120 -> 59.42028986 | X140: =AK120 -> 0 | Z140: [7] | AA140: =AJ122 -> 19.3115942 | AB140: =AK122 -> 33.44866233 | AD140: [3] | AE140: =AJ118 -> 22.3218562 | AF140: =AK118 -> 5.444355063 | AI140: x | AJ140: y | AL140: 2-11 | AM140: =((AK117-AK132)/(AJ117-AJ132))*(AI141-AJ132)+AK132 -> 189.2299603 | AN140: =((AJ141-AK117)/((AK132-AK117)/(AJ132-AJ117)))+AJ117 -> 20.46511628 | AO140: =IF($AI$141>AN140,"right","left") -> right | AP140: =IF($AJ$141>AM140,"upper","lower") -> lower
R141: [3] | S141: =AJ118 -> 22.3218562 | T141: =AK118 -> 5.444355063 | V141: [6] | W141: =AJ121 -> 58.48879135 | X141: =AK121 -> 8.563445333 | Z141: [9] | AA141: =AJ124 -> 51.24755115 | AB141: =AK124 -> 19.00454267 | AD141: [6] | AE141: =AJ121 -> 58.48879135 | AF141: =AK121 -> 8.563445333 | AI141: =S97 -> 85 | AJ141: =T97 -> 0 | AL141: 11-12 | AM141: =((AK133-AK132)/(AJ133-AJ132))*(AI141-AJ132)+AK132 -> 6.155510253 | AN141: =((AJ141-AK132)/((AK133-AK132)/(AJ133-AJ132)))+AJ132 -> -40.80733195 | AO141: right | AP141: lower | AQ141: 1-3-11-10 | AR141: =IF(AND(AO144="left",AP143="lower",AP139="upper"),1,0) -> 0 | AS141: G(F)
R142: [1] | S142: =AJ116 -> 8.442056792 | T142: =AK116 -> 14.62207128 | V142: [4] | W142: =AJ119 -> 92.20576773 | X142: =AK119 -> 13.50000629 | Z142: [8] | AA142: =AJ123 -> 82.36530378 | AB142: =AK123 -> 30.54418982 | AD142: [8] | AE142: =AJ124 -> 51.24755115 | AF142: =AK124 -> 19.00454267 | AL142: 12-13 | AM142: =((AK134-AK133)/(AJ134-AJ133))*(AI141-AJ133)+AK133 -> 7.040767042 | AN142: =((AJ141-AK133)/((AK134-AK133)/(AJ134-AJ133)))+AJ133 -> -1.776356839e-13 | AO142: right | AP142: lower
AD143: [3] | AE143: =AJ118 -> 22.3218562 | AF143: =AK118 -> 5.444355063 | AL143: 1-3 | AM143: =((AK118-AK116)/(AJ118-AJ116))*(AI141-AJ116)+AK116 -> -36.00020767 | AN143: =((AJ141-AK116)/((AK118-AK116)/(AJ118-AJ116)))+AJ116 -> 30.55555556 | AO143: right | AP143: upper | AQ143: 7-9-3-1 | AR143: =IF(AND(AO148="left",AP149="lower",AP143="upper"),1,0) -> 0 | AS143: GF(F)
AL144: 11-3 | AM144: =((AK118-AK132)/(AJ118-AJ132))*(AI141-AJ132)+AK132 -> 189.2299603 | AN144: =((AJ141-AK132)/((AK118-AK132)/(AJ118-AJ132)))+AJ132 -> 20.46511628 | AO144: right | AP144: lower
AL145: 3-6 | AM145: =((AK121-AK118)/(AJ121-AJ118))*(AI141-AJ118)+AK118 -> 10.84981139 | AN145: =((AJ141-AK118)/((AK121-AK118)/(AJ121-AJ118)))+AJ118 -> -40.80733195 | AO145: right | AP145: lower | AQ145: 2-11-12-5 | AR145: =IF(AND(AO140="right",AO152="left",AP141="lower"),1,0) -> 0 | AS145: GS(S) | AU145: SOIL CLASSIFICATION
S146: X | T146: Y | U146: FF [%] | W146: G-S | AL146: 6-12 | AM146: =((AK133-AK121)/(AJ133-AJ121))*(AI141-AJ121)+AK121 -> -235.1592058 | AN146: =((AJ141-AK121)/((AK133-AK121)/(AJ133-AJ121)))+AJ121 -> 59.42028986 | AO146: right | AP146: upper | AU146: Mechanical C. (Fluid flow class)
R147: [10] | S147: =AJ131 -> 4.975064302 | T147: 8.617064142 | U147: =AH131 -> 9.950128604 | W147: [11] | X147: =AJ132 -> 21.50488304 | Y147: =AK132 -> 3.04881657 | AL147: 6-4 | AM147: =((AK119-AK121)/(AJ119-AJ121))*(AI141-AJ121)+AK121 -> 12.44499735 | AN147: =((AJ141-AK121)/((AK119-AK121)/(AJ119-AJ121)))+AJ121 -> -6.394884622e-14 | AO147: right | AP147: lower | AQ147: 11-3-6-12-11 | AR147: =IF(AND(AO144="right",AO146="left",AP145="lower",AP141="upper"),1,0) -> 0 | AS147: GS(F) | AU147: =VLOOKUP(1,AR139:AS158,2,) -> S(S)
R148: [11] | S148: 21.50488304 | T148: 3.04881657 | U148: =AH132 -> 3.520470135 | W148: [2] | X148: =AJ117 -> 20.46511628 | Y148: =AK117 -> 0 | AL148: 3-9 | AM148: =((AK124-AK118)/(AJ124-AJ118))*(AI141-AJ118)+AK118 -> 34.82748277 | AN148: =((AJ141-AK118)/((AK124-AK118)/(AJ124-AJ118)))+AJ118 -> 10.70831822 | AO148: right | AP148: lower
R149: [12] | S149: 58.88968174 | T149: 4.877982709 | U149: =AH133 -> 5.632609261 | AL149: 7-9 | AM149: =((AK124-AK122)/(AJ124-AJ122))*(AI141-AJ122)+AK122 -> 3.738852935 | AN149: =((AJ141-AK122)/((AK124-AK122)/(AJ124-AJ122)))+AJ122 -> 93.26660601 | AO149: left | AP149: lower | AQ149: 3-9-6-3 | AR149: =IF(AND(AO150="left",AO148="right",AP145="upper"),1,0) -> 0 | AS149: GSF(F)
R150: [13] | S150: 95.43592965 | T150: 7.905201742 | U150: =AH134 -> 9.128140708 | AL150: 9-6 | AM150: =((AK121-AK124)/(AJ121-AJ124))*(AI141-AJ124)+AK124 -> -29.66289471 | AN150: =((AJ141-AK124)/((AK121-AK124)/(AJ121-AJ124)))+AJ124 -> 64.42781888 | AO150: right | AP150: upper
AL151: 9-8 | AM151: =((AK123-AK124)/(AJ123-AJ124))*(AI141-AJ124)+AK124 -> 31.52123547 | AN151: =((AJ141-AK124)/((AK123-AK124)/(AJ123-AJ124)))+AJ124 -> 0 | AO151: right | AP151: lower | AQ151: 5-12-13 | AR151: =IF(AND(AO152="right",AP142="lower"),1,0) -> 1 | AS151: S(S)
AL152: 12-5 | AM152: =((AK133-AK120)/(AJ133-AJ120))*(AI141-AJ120)+AK120 -> -235.1592058 | AN152: =((AJ141-AK120)/((AK133-AK120)/(AJ133-AJ120)))+AJ120 -> 59.42028986 | AO152: =IF($AI$141>AN152,"right","left") -> right | AP152: =IF($AJ$141>AM152,"upper","lower") -> upper
AQ153: 4-6-12-13 | AR153: =IF(AND(AO146="right",AP147="lower",AP142="upper"),1,0) -> 0 | AS153: S(F)
AQ155: 4-6-9-8 | AR155: =IF(AND(AO150="right",AP151="lower",AP147="upper"),1,0) -> 0 | AS155: SF(F)
AQ157: 7-9-8 | AR157: =IF(AND(AP149="upper",AP151="upper"),1,0) -> 0 | AS157: F(F)
R170: A | S170: B | T170: C | U170: X | V170: Y | X170: A | Y170: B | Z170: C | AA170: X | AB170: Y | AD170: A | AE170: B | AF170: C | AG170: X | AH170: Y
R171: 0 | S171: 0 | T171: 100 | U171: =S171+T171/2 -> 50 | V171: =SQRT(3)/2*T171 -> 86.60254038 | X171: 100 | Y171: 0 | Z171: 0 | AA171: =Y171+Z171/2 -> 0 | AB171: =SQRT(3)/2*Z171 -> 0 | AD171: 0 | AE171: 100 | AF171: 0 | AG171: =AE171+AF171/2 -> 100 | AH171: =AF171*SQRT(3)/2 -> 0
R172: 0 | S172: 100 | T172: 0 | U172: =S172+T172/2 -> 100 | V172: =SQRT(3)/2*T172 -> 0 | X172: 0 | Y172: 0 | Z172: 100 | AA172: =Y172+Z172/2 -> 50 | AB172: =SQRT(3)/2*Z172 -> 86.60254038 | AD172: 100 | AE172: 0 | AF172: 0 | AG172: =AE172+AF172/2 -> 0 | AH172: =AF172*SQRT(3)/2 -> 0
R173: 10 | S173: 0 | T173: 90 | U173: =S173+T173/2 -> 45 | V173: =SQRT(3)/2*T173 -> 77.94228634 | X173: 90 | Y173: 10 | Z173: 0 | AA173: =Y173+Z173/2 -> 10 | AB173: =SQRT(3)/2*Z173 -> 0 | AD173: 0 | AE173: 90 | AF173: 10 | AG173: =AE173+AF173/2 -> 95 | AH173: =AF173*SQRT(3)/2 -> 8.660254038
R174: 10 | S174: 90 | T174: 0 | U174: =S174+T174/2 -> 90 | V174: =SQRT(3)/2*T174 -> 0 | X174: 0 | Y174: 10 | Z174: 90 | AA174: =Y174+Z174/2 -> 55 | AB174: =SQRT(3)/2*Z174 -> 77.94228634 | AD174: 90 | AE174: 0 | AF174: 10 | AG174: =AE174+AF174/2 -> 5 | AH174: =AF174*SQRT(3)/2 -> 8.660254038
R175: 20 | S175: 0 | T175: 80 | U175: 40 | V175: 69.2820323 | X175: 80 | Y175: 20 | Z175: 0 | AA175: 20 | AB175: 0 | AD175: 0 | AE175: 80 | AF175: 20 | AG175: 90 | AH175: 17.32050808
R176: 20 | S176: 80 | T176: 0 | U176: 80 | V176: 0 | X176: 0 | Y176: 20 | Z176: 80 | AA176: 60 | AB176: 69.2820323 | AD176: 80 | AE176: 0 | AF176: 20 | AG176: 10 | AH176: 17.32050808
R177: 30 | S177: 0 | T177: 70 | U177: 35 | V177: 60.62177826 | X177: 70 | Y177: 30 | Z177: 0 | AA177: 30 | AB177: 0 | AD177: 0 | AE177: 70 | AF177: 30 | AG177: 85 | AH177: 25.98076211
R178: 30 | S178: 70 | T178: 0 | U178: 70 | V178: 0 | X178: 0 | Y178: 30 | Z178: 70 | AA178: 65 | AB178: 60.62177826 | AD178: 70 | AE178: 0 | AF178: 30 | AG178: 15 | AH178: 25.98076211
R179: 40 | S179: 0 | T179: 60 | U179: 30 | V179: 51.96152423 | X179: 60 | Y179: 40 | Z179: 0 | AA179: 40 | AB179: 0 | AD179: 0 | AE179: 60 | AF179: 40 | AG179: 80 | AH179: 34.64101615
R180: 40 | S180: 60 | T180: 0 | U180: 60 | V180: 0 | X180: 0 | Y180: 40 | Z180: 60 | AA180: 70 | AB180: 51.96152423 | AD180: 60 | AE180: 0 | AF180: 40 | AG180: 20 | AH180: 34.64101615
R181: 50 | S181: 0 | T181: 50 | U181: 25 | V181: 43.30127019 | X181: 50 | Y181: 50 | Z181: 0 | AA181: 50 | AB181: 0 | AD181: 0 | AE181: 50 | AF181: 50 | AG181: 75 | AH181: 43.30127019
R182: 50 | S182: 50 | T182: 0 | U182: 50 | V182: 0 | X182: 0 | Y182: 50 | Z182: 50 | AA182: 75 | AB182: 43.30127019 | AD182: 50 | AE182: 0 | AF182: 50 | AG182: 25 | AH182: 43.30127019
R183: 60 | S183: 0 | T183: 40 | U183: 20 | V183: 34.64101615 | X183: 40 | Y183: 60 | Z183: 0 | AA183: 60 | AB183: 0 | AD183: 0 | AE183: 40 | AF183: 60 | AG183: 70 | AH183: 51.96152423
R184: 60 | S184: 40 | T184: 0 | U184: 40 | V184: 0 | X184: 0 | Y184: 60 | Z184: 40 | AA184: 80 | AB184: 34.64101615 | AD184: 40 | AE184: 0 | AF184: 60 | AG184: 30 | AH184: 51.96152423
R185: 70 | S185: 0 | T185: 30 | U185: 15 | V185: 25.98076211 | X185: 30 | Y185: 70 | Z185: 0 | AA185: 70 | AB185: 0 | AD185: 0 | AE185: 30 | AF185: 70 | AG185: 65 | AH185: 60.62177826
R186: 70 | S186: 30 | T186: 0 | U186: 30 | V186: 0 | X186: 0 | Y186: 70 | Z186: 30 | AA186: 85 | AB186: 25.98076211 | AD186: 30 | AE186: 0 | AF186: 70 | AG186: 35 | AH186: 60.62177826
R187: 80 | S187: 0 | T187: 20 | U187: 10 | V187: 17.32050808 | X187: 20 | Y187: 80 | Z187: 0 | AA187: 80 | AB187: 0 | AD187: 0 | AE187: 20 | AF187: 80 | AG187: 60 | AH187: 69.2820323
R188: 80 | S188: 20 | T188: 0 | U188: 20 | V188: 0 | X188: 0 | Y188: 80 | Z188: 20 | AA188: 90 | AB188: 17.32050808 | AD188: 20 | AE188: 0 | AF188: 80 | AG188: 40 | AH188: 69.2820323
R189: 90 | S189: 0 | T189: 10 | U189: 5 | V189: 8.660254038 | X189: 10 | Y189: 90 | Z189: 0 | AA189: 90 | AB189: 0 | AD189: 0 | AE189: 10 | AF189: 90 | AG189: 55 | AH189: 77.94228634
R190: 90 | S190: 10 | T190: 0 | U190: 10 | V190: 0 | X190: 0 | Y190: 90 | Z190: 10 | AA190: 95 | AB190: 8.660254038 | AD190: 10 | AE190: 0 | AF190: 90 | AG190: 45 | AH190: 77.94228634
